bitfinex/quotes_ETHUSD_20241001
["timestamp","ask_amount","ask_price","bid_price","bid_amount"]
[1727782634994,3.79547,2634.8,2634.4,0.7556]
[1727782636206,1.61832371,2634.9,2634.4,0.7556]
[1727782636395,4.55344,2635.0,2634.6,3.79556]
[1727782636396,3.79514,2635.0,2634.6,3.79556]
[1727782636596,3.79514,2635.0,2634.7,0.8077]
[1727782637887,3.79507,2635.0,2634.7,0.8077]
[1727782638312,3.79493,2635.1,2634.7,0.8077]
[1727782639473,3.79493,2635.1,2634.8,0.1187415]
[1727782639714,3.7948,2635.2,2634.8,0.1187415]
[1727782640005,3.7948,2635.2,2634.9,0.11862333]
[1727782640415,3.7948,2635.2,2634.7,4.60316]
[1727782640648,3.7948,2635.2,2635.0,0.11850517]
[1727782640923,3.7948,2635.2,2635.1,0.11838702]
[1727782641293,3.7948,2635.2,2634.8,3.79529]
[1727782641492,3.7948,2635.2,2635.1,0.11838702]
[1727782641688,3.7948,2635.2,2634.8,3.79529]
[1727782641893,3.79492,2635.1,2634.7,4.60318]
[1727782642118,3.79492,2635.1,2634.7,5.60488937]
[1727782642792,3.79492,2635.1,2634.7,1.80940937]
[1727782642980,3.79492,2635.1,2634.7,0.8077]
[1727782643978,3.79492,2635.1,2634.7,4.60318]
[1727782644293,3.79492,2635.1,2634.7,0.8077]
[1727782644490,3.79521,2634.9,2634.7,0.8077]
[1727782644788,3.79521,2634.9,2634.5,4.55016]
[1727782645034,3.79521,2634.9,2634.5,6.125773]
[1727782645861,3.79507,2635.0,2634.5,9.921443]
[1727782646020,3.79507,2635.0,2634.5,6.125683]
[1727782646543,3.79507,2635.0,2634.5,9.921383]
[1727782647359,3.79507,2635.0,2634.5,6.125683]
[1727782647558,3.79507,2635.0,2634.5,4.55007]
[1727782647928,3.79521,2634.9,2634.5,4.55007]
[1727782648549,3.79518,2635.0,2634.5,0.7544]
[1727782648760,3.79528,2634.9,2634.5,0.7544]
[1727782649367,3.79538,2634.8,2634.5,0.7544]
[1727782651069,3.79508,2635.0,2634.5,0.7544]
[1727782651370,3.79523,2634.9,2634.5,4.55014]
[1727782652068,3.79523,2634.9,2634.5,4.55015]
[1727782652877,3.79523,2634.9,2634.5,0.7544]
[1727782653190,3.79508,2635.0,2634.6,3.79558]
[1727782653389,3.79508,2635.0,2634.5,1.209423]
[1727782653390,7.59024,2635.0,2634.5,1.209423]
[1727782653587,7.59024,2635.0,2634.5,5.005143]
[1727782653588,3.79508,2635.0,2634.5,5.005143]
[1727782653791,7.59022,2635.0,2634.5,5.005143]
[1727782654093,3.79538,2634.8,2634.5,0.7544]
[1727782654588,3.79549,2634.7,2634.6,0.11910452]
[1727782654792,3.79538,2634.8,2634.6,0.11910452]
[1727782654992,7.59082,2634.8,2634.6,0.11910452]
[1727782655291,3.79538,2634.8,2634.7,0.11898633]
[1727782655674,3.79538,2634.8,2634.4,3.79586]
[1727782655863,3.79538,2634.8,2634.7,0.11898633]
[1727782656059,3.79538,2634.8,2634.4,3.79586]
[1727782656297,3.79538,2634.8,2634.7,0.11898633]
[1727782656588,3.79538,2634.8,2634.4,7.59172]
[1727782656748,3.79538,2634.8,2634.7,0.11898633]
[1727782656948,3.79527,2634.9,2634.4,3.79584]
[1727782657181,3.79508,2635.0,2634.7,0.11898633]
[1727782657354,3.79535,2634.8,2634.4,3.79584]
[1727782657683,3.79535,2634.8,2634.4,7.5917]
[1727782657848,3.79535,2634.8,2634.4,3.79584]
[1727782658689,3.79522,2634.9,2634.4,7.59166]
[1727782658859,3.79508,2635.0,2634.5,3.79574]
[1727782659061,7.59025,2635.0,2634.5,3.79574]
[1727782659296,3.79508,2635.0,2634.5,3.79574]
[1727782659454,2.39882371,2635.1,2634.6,0.8245]
[1727782659650,3.79504,2635.1,2634.6,4.62006]
[1727782659868,3.79489,2635.2,2634.9,0.7782]
[1727782660111,3.79493,2635.1,2634.9,0.7782]
[1727782661731,3.79506,2635.0,2634.7,0.7782]
[1727782662919,7.79040262,2635.3,2634.7,0.7782]
[1727782662920,3.99567262,2635.3,2634.7,0.7782]
[1727782663095,3.79489,2635.2,2634.7,0.7782]
[1727782663421,3.79498,2635.1,2634.7,4.57366]
[1727782663735,3.79489,2635.2,2634.7,4.57366]
[1727782664100,7.58975,2635.2,2634.7,4.57366]
[1727782664300,7.58975,2635.2,2634.8,3.79535]
[1727782664301,3.79486,2635.2,2634.8,3.79535]
[1727782664722,7.58973,2635.2,2634.8,3.79535]
[1727782665547,3.79486,2635.2,2634.7,0.7782]
[1727782665845,3.79499,2635.1,2634.7,4.57367]
[1727782666342,3.79499,2635.1,2634.7,0.7782]
[1727782667198,3.79511,2635.0,2634.7,0.7782]
[1727782667403,5.37831891,2635.2,2634.7,0.7782]
[1727782667629,3.79494,2635.1,2634.7,4.57366]
[1727782668234,5.37848891,2635.1,2634.7,4.57366]
[1727782671537,5.37848891,2635.1,2635.0,0.11865528]
[1727782671739,5.37848891,2635.1,2634.9,0.11877345]
[1727782671949,5.37848891,2635.1,2635.0,0.11865528]
[1727782672755,5.37848891,2635.1,2634.7,4.57366]
[1727782672936,5.37848891,2635.1,2635.0,0.11865528]
[1727782673130,3.79494,2635.1,2634.7,4.57366]
[1727782673332,1.58517312,2635.0,2634.7,4.57366]
[1727782676846,3.79493,2635.1,2634.8,3.79533]
[1727782676847,1.58517312,2635.1,2634.8,3.79533]
[1727782677004,1.58517312,2635.0,2634.8,3.79533]
[1727782677208,1.58517312,2635.0,2634.7,4.57368]
[1727782677444,1.58517312,2635.0,2634.7,5.410603]
[1727782677650,1.58517312,2635.0,2634.8,3.79533]
[1727782677809,1.58517312,2635.0,2634.7,5.410603]
[1727782678743,1.58517312,2635.0,2634.7,5.410563]
[1727782678931,1.58517312,2635.0,2634.7,1.615123]
[1727782679126,1.58517312,2635.0,2634.7,5.410593]
[1727782680431,1.58517312,2635.0,2634.7,4.57367]
[1727782683269,1.58517312,2635.0,2634.7,0.7782]
[1727782683841,1.58517312,2635.0,2634.7,4.57368]
[1727782684578,1.58517312,2635.0,2634.8,0.11888068]
[1727782684936,1.58517312,2635.0,2634.7,4.57368]
[1727782685137,1.58517312,2635.0,2634.9,0.11876251]
[1727782685333,5.38029312,2635.0,2634.8,0.11888068]
[1727782685571,3.79512,2635.0,2634.9,0.11876251]
[1727782689589,5.38091591,2634.9,2634.4,8.51137817]
[1727782689749,5.38091591,2634.9,2634.4,4.71547817]
[1727782689947,1.58562591,2634.9,2634.5,3.79578]
[1727782691098,1.58562591,2634.9,2634.6,4.60698]
[1727782694509,5.38085591,2634.9,2634.4,8.34967]
[1727782694795,5.38085591,2634.9,2634.5,3.79578]
[1727782695093,1.58562591,2635.0,2634.8,3.79527]
[1727782695395,1.58562591,2635.1,2634.9,3.79521]
[1727782695562,1.58562591,2635.0,2634.9,3.79521]
[1727782695768,1.58562591,2635.1,2634.8,3.79532]
[1727782695996,1.58562591,2635.0,2634.8,3.79532]
[1727782697455,1.58562591,2635.1,2634.8,3.79532]
[1727782698860,1.58562591,2635.0,2634.8,3.79532]
[1727782699059,5.77707208,2635.2,2634.8,3.79532]
[1727782699060,1.58562591,2635.1,2634.8,3.79532]
[1727782699495,1.58562591,2635.1,2634.9,0.11878441]
[1727782699795,1.58562591,2635.0,2634.9,0.11878441]
[1727782699961,1.58562591,2635.1,2634.9,0.11878441]
[1727782700151,1.58562591,2635.0,2634.9,0.11878441]
[1727782700594,1.58562591,2635.1,2634.9,0.11878441]
[1727782701354,1.58562591,2635.0,2634.9,0.11878441]
[1727782705025,1.58562591,2635.0,2634.7,4.55331]
[1727782705182,1.58562591,2635.0,2634.9,0.11875938]
[1727782705391,1.58562591,2635.0,2634.8,3.91422755]
[1727782705697,1.58562591,2635.0,2634.9,0.11875938]
[1727782707063,1.58562591,2635.0,2634.7,4.55333]
[1727782707295,1.58562591,2635.0,2634.8,0.11887755]
[1727782707498,1.58562591,2635.0,2634.7,0.7579]
[1727782707714,5.38078591,2635.0,2634.9,0.11875938]
[1727782708001,5.38078591,2635.0,2634.8,0.11887755]
[1727782708210,5.38078591,2635.0,2634.7,0.7579]
[1727782708211,5.38078591,2635.0,2634.9,0.11875938]
[1727782708497,5.38078591,2635.0,2634.7,0.7579]
[1727782708696,5.38078591,2635.0,2634.8,0.11887755]
[1727782708907,5.38078591,2635.0,2634.7,0.7579]
[1727782709116,1.58562591,2635.0,2634.9,0.11875938]
[1727782709288,1.58562591,2635.0,2634.8,0.11887755]
[1727782709474,1.58562591,2635.0,2634.7,0.7579]
[1727782709674,1.58562591,2635.0,2634.8,0.11887755]
[1727782709876,1.58562591,2635.0,2634.7,0.7579]
[1727782710119,1.58562591,2635.0,2634.8,0.11887755]
[1727782710621,5.38083591,2634.9,2634.7,0.7579]
[1727782710779,5.38083591,2634.9,2634.5,3.79569]
[1727782711119,5.38083591,2634.9,2634.5,9.02326554]
[1727782711319,5.38083591,2634.9,2634.5,5.22754554]
[1727782711527,5.38083591,2634.9,2634.5,9.02326554]
[1727782711528,1.58562591,2634.9,2634.5,9.02326554]
[1727782712538,5.38071591,2635.0,2634.6,3.79564]
[1727782713144,3.79536,2634.8,2634.4,3.7959]
[1727782713425,2.39222591,2634.9,2634.2,1.62684173]
[1727782713711,1.58562591,2634.9,2634.6,4.58884]
[1727782714010,1.58562591,2635.0,2634.6,4.58882]
[1727782714216,1.58562591,2635.0,2634.7,3.79546]
[1727782714616,1.58562591,2635.0,2634.8,0.11494271]
[1727782715008,1.58562591,2635.0,2634.6,4.58891]
[1727782715181,1.58562591,2635.0,2634.9,0.11482454]
[1727782715382,1.58562591,2635.0,2634.6,4.58891]
[1727782715892,1.58562591,2635.0,2634.7,0.11506089]
[1727782719741,5.38071591,2635.0,2634.7,0.11506089]
[1727782723149,3.79522,2634.9,2634.7,0.11506089]
[1727782723309,0.7548,2634.8,2634.7,0.11506089]
[1727782723712,0.7548,2634.8,2634.5,3.79576]
[1727782724007,0.7548,2634.8,2634.7,0.11507329]
[1727782724206,0.7548,2634.8,2634.6,0.11519457]
[1727782724411,0.7548,2634.8,2634.7,0.11507638]
[1727782724649,0.7548,2634.8,2634.5,3.79576]
[1727782725147,0.7548,2634.8,2634.6,0.11519457]
[1727782725343,0.7548,2634.8,2634.6,3.91083457]
[1727782725647,0.7548,2634.8,2634.6,0.11519457]
[1727782725949,4.55016,2634.8,2634.4,7.59168]
[1727782726123,4.55016,2634.8,2634.7,0.11507638]
[1727782726327,0.7548,2634.8,2634.4,7.59168]
[1727782726526,0.7548,2634.8,2634.7,0.11507638]
[1727782726727,0.7548,2634.8,2634.5,3.79578]
[1727782727013,0.7548,2634.8,2634.7,0.11507638]
[1727782727555,0.7548,2634.8,2634.5,3.79577]
[1727782727736,4.55015,2634.8,2634.7,0.11507638]
[1727782727939,4.55015,2634.8,2634.6,0.11519457]
[1727782728125,4.55015,2634.8,2634.7,0.11507638]
[1727782728328,0.7548,2634.8,2634.7,0.11507638]
[1727782728527,0.7548,2634.8,2634.5,3.79577]
[1727782728744,0.7548,2634.8,2634.7,0.11507638]
[1727782728957,0.7548,2634.8,2634.6,0.11519457]
[1727782729112,0.7548,2634.8,2634.7,0.11507638]
[1727782729313,0.7548,2634.8,2634.5,3.79577]
[1727782729621,0.7548,2634.8,2634.7,0.11507638]
[1727782729820,1.58562591,2635.0,2634.6,3.91074457]
[1727782730044,1.58562591,2635.0,2634.7,0.11507638]
[1727782731062,5.38070591,2635.0,2634.7,0.11507638]
[1727782734517,5.38083591,2634.9,2634.7,0.11507638]
[1727782734720,5.38083591,2634.9,2634.5,3.79571]
[1727782734918,5.38083591,2634.9,2634.8,0.11496287]
[1727782735139,5.38083591,2634.9,2634.4,3.79586]
[1727782735339,5.38083591,2634.9,2634.8,0.11496287]
[1727782735638,5.38083591,2634.9,2634.4,4.62378249]
[1727782735639,5.38083591,2634.9,2634.4,3.79586]
[1727782735846,5.38083591,2634.9,2634.5,0.34770129]
[1727782736028,5.38083591,2634.9,2634.6,0.11519924]
[1727782736235,5.38083591,2634.9,2634.5,3.79576]
[1727782736432,5.38083591,2634.9,2634.6,0.11519924]
[1727782736657,6.16813591,2634.9,2634.6,0.11519924]
[1727782737961,3.79537,2634.8,2634.4,3.79586]
[1727782738164,3.79537,2634.8,2634.7,0.11509345]
[1727782738331,3.79537,2634.8,2634.5,0.34772843]
[1727782738332,3.79537,2634.8,2634.4,7.59171]
[1727782738667,6.16813591,2634.9,2634.5,4.14349966]
[1727782738862,6.16813591,2634.9,2634.6,0.11521318]
[1727782739262,1.58562591,2634.8,2634.6,0.11521318]
[1727782739449,3.79541,2634.8,2634.6,0.11521318]
[1727782739760,6.16813591,2634.9,2634.5,3.79571]
[1727782739973,6.16813591,2634.9,2634.7,0.11509655]
[1727782740128,2.37292591,2634.9,2634.6,3.91082318]
[1727782740324,2.37292591,2634.9,2634.8,0.11497682]
[1727782740560,2.37292591,2634.9,2634.3,1.62194173]
[1727782740561,1.58562591,2634.9,2634.7,0.115095]
[1727782740734,1.58562591,2635.0,2634.8,0.11497682]
[1727782741079,1.58562591,2635.0,2634.9,3.79521]
[1727782741260,1.58562591,2635.2,2634.8,4.26408468]
[1727782741441,1.58562591,2635.1,2634.9,0.11485864]
[1727782741640,5.38051591,2635.2,2634.9,0.11485864]
[1727782741964,1.58562591,2635.1,2634.9,0.11485864]
[1727782746453,5.38053591,2635.2,2634.9,0.11485864]
[1727782746691,1.58562591,2635.1,2634.7,4.57248]
[1727782746858,1.58562591,2635.1,2634.8,0.95171373]
[1727782747578,5.38061591,2635.1,2634.8,0.11491173]
[1727782747767,9.17563591,2635.1,2634.8,0.11491173]
[1727782747990,9.17563591,2635.1,2634.7,4.57248]
[1727782748197,5.38061591,2635.1,2634.9,0.11097793]
[1727782748358,5.38061591,2635.1,2634.8,0.1110961]
[1727782748695,3.79506,2635.0,2634.9,0.11097793]
[1727782748989,5.38068591,2635.0,2634.5,0.786]
[1727782749157,3.79522,2634.9,2634.5,1.6793673]
[1727782749696,5.38071591,2635.0,2634.5,1.6793673]
[1727782749855,3.79521,2634.9,2634.5,0.786]
[1727782750195,3.79521,2634.9,2634.5,4.58175]
[1727782751399,3.79521,2634.9,2634.5,8.37745]
[1727782751694,3.79521,2634.9,2634.5,4.5817]
[1727782753392,7.59055,2634.9,2634.5,0.786]
[1727782753601,3.79521,2634.9,2634.5,4.58177]
[1727782753989,3.79521,2634.9,2634.5,8.37748]
[1727782754301,3.79521,2634.9,2634.5,4.58171]
[1727782754474,1.58562591,2635.0,2634.5,4.58171]
[1727782754679,5.38071591,2635.0,2634.5,8.37736]
[1727782755199,5.38071591,2635.0,2634.5,8.37735]
[1727782755801,5.38071591,2635.0,2634.5,8.37734]
[1727782756175,5.38071591,2635.0,2634.6,3.79561]
[1727782759603,5.38071591,2635.0,2634.7,0.11124037]
[1727782764686,3.79522,2634.9,2634.7,0.11124037]
[1727782764885,3.79522,2634.9,2634.5,4.58176]
[1727782765187,1.58562591,2635.0,2634.6,0.11138002]
[1727782765426,5.38070591,2635.0,2634.6,3.90701002]
[1727782768006,3.79522,2634.9,2634.6,0.11138002]
[1727782768391,1.58562591,2635.0,2634.6,0.11138002]
[1727782768793,3.79521,2634.9,2634.6,0.11138002]
[1727782769329,5.38071591,2635.0,2634.6,0.11138002]
[1727782769737,5.38071591,2635.0,2634.6,3.90701002]
[1727782773697,1.58562591,2635.0,2634.6,7.70258002]
[1727782773938,5.38068591,2635.0,2634.6,3.90695002]
[1727782775513,9.17588591,2635.0,2634.6,0.11138002]
[1727782775939,5.38068591,2635.0,2634.6,0.11138002]
[1727782776136,9.17588591,2635.0,2634.6,0.11138002]
[1727782776631,9.17585591,2635.0,2634.6,0.11138002]
[1727782777114,5.38111591,2634.7,2634.6,0.11138002]
[1727782777431,1.58562591,2634.7,2634.3,4.59311]
[1727782777636,1.58562591,2634.7,2634.6,0.11137542]
[1727782778153,5.38097591,2634.8,2634.4,3.79589]
[1727782778455,5.38097591,2634.8,2634.5,0.11149362]
[1727782779010,1.58562591,2634.8,2634.5,0.11149362]
[1727782779208,1.58562591,2634.8,2634.6,0.8329]
[1727782779448,3.79535,2634.8,2634.6,0.8329]
[1727782779655,3.79535,2634.8,2634.7,0.11125723]
[1727782780986,5.38097591,2634.8,2634.7,0.11125723]
[1727782781180,3.79535,2634.8,2634.7,0.11125723]
[1727782781890,5.38097591,2634.8,2634.7,0.16728673]
[1727782782557,3.79535,2634.8,2634.7,0.16728673]
[1727782784579,5.38089591,2634.9,2634.7,0.16728673]
[1727782784795,1.58562591,2634.9,2634.7,0.16728673]
[1727782784946,5.38069591,2635.0,2634.7,0.16728673]
[1727782785354,3.79507,2635.0,2634.7,0.16728673]
[1727782785547,5.38069591,2635.0,2634.7,0.16728673]
[1727782785988,3.79523,2634.9,2634.7,0.16728673]
[1727782787681,5.38070591,2635.0,2634.7,0.16728673]
[1727782787900,5.38070591,2635.0,2634.7,0.6468704]
[1727782788070,3.79535,2634.8,2634.7,0.16728673]
[1727782789599,3.79527,2634.9,2634.7,0.16728673]
[1727782792321,3.79535,2634.8,2634.7,0.16728673]
[1727782792613,6.13497591,2634.8,2634.7,0.16728673]
[1727782792910,1.58515844,2634.8,2634.7,0.16728673]
[1727782793112,1.58515844,2634.9,2634.7,0.95368673]
[1727782793280,1.58515844,2635.0,2634.7,0.95368673]
[1727782793609,5.38031844,2635.0,2634.7,0.95368673]
[1727782793771,3.79527,2634.9,2634.7,0.95368673]
[1727782794406,5.38031844,2635.0,2634.7,0.95368673]
[1727782794407,1.58515844,2635.0,2634.7,4.74917673]
[1727782794570,5.77649959,2635.1,2634.7,5.6036724]
[1727782794571,1.58515844,2635.1,2634.7,5.6036724]
[1727782794901,1.58515844,2635.1,2634.7,4.74917673]
[1727782795480,1.58515844,2635.1,2634.8,3.79533]
[1727782795680,3.79492,2635.1,2634.7,4.74917673]
[1727782795881,5.38007844,2635.1,2634.7,4.74917673]
[1727782796280,1.58515844,2635.1,2634.7,4.74917673]
[1727782796474,7.58974,2635.2,2634.7,4.74917673]
[1727782796475,5.38000844,2635.2,2634.8,3.79533]
[1727782796675,1.58515844,2635.2,2634.8,3.90649363]
[1727782796907,1.58515844,2635.2,2634.8,4.81696444]
[1727782797721,1.58515844,2635.2,2634.9,3.79515]
[1727782797883,1.58515844,2635.2,2634.9,3.8511795]
[1727782798079,1.58515844,2635.2,2635.0,0.11090581]
[1727782798398,1.58515844,2635.2,2635.0,0.93630581]
[1727782798916,1.58515844,2635.2,2635.0,0.99233531]
[1727782799814,5.37993844,2635.2,2635.0,0.99233531]
[1727782800020,4.58472,2635.1,2635.0,0.16693531]
[1727782800195,6.16987844,2635.1,2635.0,0.0560295]
[1727782800396,4.58472,2635.1,2635.0,0.0560295]
[1727782800921,6.56628604,2635.1,2635.0,0.0560295]
[1727782801123,6.56633465,2635.1,2635.0,0.0560295]
[1727782802682,5.77653465,2635.1,2635.0,0.0560295]
[1727782802888,1.58540479,2635.1,2635.0,0.0560295]
[1727782803220,3.79492,2635.1,2635.0,0.0560295]
[1727782803392,5.38032479,2635.1,2635.0,0.0560295]
[1727782803794,5.38032479,2635.1,2635.0,0.16322061]
[1727782804442,3.79492,2635.1,2635.0,0.16322061]
[1727782804942,5.38024714,2635.1,2635.0,0.16322061]
[1727782805937,3.79492,2635.1,2635.0,0.16322061]
[1727782806540,5.38026746,2635.1,2635.0,0.16322061]
[1727782807410,3.79492,2635.1,2635.0,0.16322061]
[1727782808411,5.38029084,2635.1,2635.0,0.16322061]
[1727782808612,5.38029084,2635.1,2635.0,0.0560295]
[1727782808833,5.38029084,2635.1,2635.0,0.16322061]
[1727782814215,5.38029084,2635.1,2635.0,0.0560295]
[1727782814524,3.79492,2635.1,2635.0,0.0560295]
[1727782814715,5.38032531,2635.1,2635.0,0.16324341]
[1727782814914,5.38032531,2635.1,2635.0,0.0560295]
[1727782815143,3.79492,2635.1,2635.0,0.16324341]
[1727782815355,3.79492,2635.1,2635.0,0.0560295]
[1727782815955,3.79492,2635.1,2635.0,0.16324341]
[1727782816154,3.79492,2635.1,2635.0,0.0560295]
[1727782816313,3.79492,2635.1,2635.0,0.16324341]
[1727782816513,3.79492,2635.1,2635.0,0.0560295]
[1727782816719,3.79492,2635.1,2635.0,0.16324341]
[1727782816970,3.79492,2635.1,2635.0,0.0560295]
[1727782817450,3.79492,2635.1,2635.0,0.16324341]
[1727782818358,3.79492,2635.1,2635.0,0.0560295]
[1727782818558,3.79492,2635.1,2635.0,0.16324341]
[1727782818851,5.38037294,2635.1,2635.0,0.16324341]
[1727782819236,5.38035696,2635.1,2635.0,0.16324341]
[1727782819443,3.79492,2635.1,2635.0,0.16324341]
[1727782819613,5.3803645,2635.1,2635.0,0.16324341]
[1727782820758,5.38037697,2635.1,2635.0,0.16324341]
[1727782820918,3.79492,2635.1,2635.0,0.16324341]
[1727782821118,5.38044138,2635.1,2635.0,0.16324341]
[1727782821318,5.38042249,2635.1,2635.0,0.16324341]
[1727782822132,3.79492,2635.1,2635.0,0.16324341]
[1727782822335,5.38059666,2635.1,2635.0,0.16324341]
[1727782822554,3.79492,2635.1,2635.0,0.16324341]
[1727782824571,5.77664909,2635.1,2635.0,0.16324341]
[1727782824758,3.79492,2635.1,2635.0,0.16324341]
[1727782825639,5.77721759,2635.1,2635.0,0.16324341]
[1727782829148,5.77721759,2635.1,2635.0,0.0560295]
[1727782829485,5.77721759,2635.1,2635.0,0.16327233]
[1727782829689,5.77721759,2635.1,2635.0,0.0560295]
[1727782829990,5.77721759,2635.1,2635.0,0.16327233]
[1727782830487,5.77792058,2635.1,2635.0,0.16327233]
[1727782835207,5.77768718,2635.1,2635.0,0.16327233]
[1727782840266,5.77770103,2635.1,2635.0,0.16327233]
[1727782845162,3.79492,2635.1,2635.0,0.16327233]
[1727782847814,4.57012,2635.1,2635.0,0.16327233]
[1727782849881,4.57012,2635.1,2635.0,0.0560295]
[1727782850108,3.79492,2635.1,2635.0,0.0560295]
[1727782850613,5.77854782,2635.1,2635.0,0.0560295]
[1727782850822,5.77854782,2635.1,2635.0,0.16327993]
[1727782851018,7.39687153,2635.1,2635.0,0.16327993]
[1727782851184,5.41324371,2635.1,2635.0,0.16327993]
[1727782861111,5.41324371,2635.1,2635.0,0.16327993]
[1727782865658,3.79492,2635.1,2635.0,0.16327993]
[1727782867868,5.41324371,2635.1,2635.0,0.16327993]
[1727782868364,3.79492,2635.1,2635.0,0.16327993]
[1727782870471,5.41324371,2635.1,2635.0,0.16327993]
[1727782877490,1.98205798,2635.2,2635.0,0.16327993]
[1727782877776,1.58565796,2635.2,2635.0,0.64058992]
[1727782878539,5.38036796,2635.3,2635.0,0.64058992]
[1727782878957,1.58565796,2635.2,2635.0,0.64058992]
[1727782880270,1.58565796,2635.2,2635.1,0.52504799]
[1727782880472,1.58565796,2635.3,2635.2,0.779]
[1727782880677,1.58565796,2635.3,2635.2,0.8350295]
[1727782880678,3.79463,2635.3,2635.2,0.8350295]
[1727782880970,5.37973441,2635.3,2635.2,0.94200863]
[1727782881175,5.37973441,2635.3,2635.2,0.16300863]
[1727782881366,5.37951427,2635.3,2635.2,0.16300863]
[1727782881673,3.79463,2635.3,2635.2,0.16300863]
[1727782882484,5.37962383,2635.3,2635.2,0.16300863]
[1727782884969,1.58499383,2635.3,2635.2,0.93870863]
[1727782885277,5.37962383,2635.3,2635.2,0.93870863]
[1727782885681,3.79463,2635.3,2635.2,0.93870863]
[1727782885985,5.37962383,2635.3,2635.2,0.93870863]
[1727782891866,3.79463,2635.3,2635.2,0.93870863]
[1727782892154,5.37962383,2635.3,2635.2,0.16300863]
[1727782893383,3.79463,2635.3,2635.2,0.16300863]
[1727782893782,5.37962383,2635.3,2635.2,0.16300863]
[1727782897900,3.79463,2635.3,2635.2,0.16300863]
[1727782898087,5.37962383,2635.3,2635.2,0.16300863]
[1727782898595,3.79463,2635.3,2635.2,0.16300863]
[1727782899099,5.37962383,2635.3,2635.2,0.16300863]
[1727782899471,3.79463,2635.3,2635.2,0.16300863]
[1727782899671,5.37962383,2635.3,2635.2,0.16300863]
[1727782899871,3.79463,2635.3,2635.2,0.16300863]
[1727782900080,5.37962383,2635.3,2635.2,0.16300863]
[1727782901299,3.79463,2635.3,2635.2,0.16300863]
[1727782901594,5.37962383,2635.3,2635.2,0.16300863]
[1727782903261,3.79463,2635.3,2635.2,0.16300863]
[1727782903559,5.37962383,2635.3,2635.2,0.16300863]
[1727782905094,3.79463,2635.3,2635.2,0.16300863]
[1727782905305,5.37962383,2635.3,2635.2,0.16300863]
[1727782907125,3.79463,2635.3,2635.2,0.16300863]
[1727782907283,4.60683,2635.3,2635.2,0.16300863]
[1727782908320,5.77536849,2635.3,2635.2,0.16300863]
[1727782908526,5.37936691,2635.3,2635.2,0.16300863]
[1727782913905,3.79463,2635.3,2635.2,0.16300863]
[1727782916341,5.77567643,2635.3,2635.2,0.16300863]
[1727782917840,5.77618701,2635.3,2635.2,0.16300863]
[1727782918505,5.77631298,2635.3,2635.2,0.16300863]
[1727782919429,5.38028143,2635.3,2635.2,0.16300863]
[1727782922136,3.79463,2635.3,2635.2,0.16300863]
[1727782923343,5.77631298,2635.3,2635.2,0.16300863]
[1727782925444,3.79463,2635.3,2635.2,0.16300863]
[1727782926434,5.41295371,2635.3,2635.2,0.16300863]
[1727782929627,5.77720955,2635.3,2635.2,0.16300863]
[1727782931264,5.77722556,2635.3,2635.2,0.16300863]
[1727782931931,5.77723807,2635.3,2635.2,0.16300863]
[1727782933317,3.79463,2635.3,2635.2,0.16300863]
[1727782935373,5.77753926,2635.3,2635.2,0.16300863]
[1727782936031,3.79463,2635.3,2635.2,0.16300863]
[1727782936238,5.77744806,2635.3,2635.2,0.16300863]
[1727782938434,3.79463,2635.3,2635.2,0.16300863]
[1727782939142,5.77752816,2635.3,2635.2,0.16300863]
[1727782939676,5.77746852,2635.3,2635.2,0.16300863]
[1727782940886,3.79463,2635.3,2635.2,0.16300863]
[1727782941746,4.60343,2635.3,2635.2,0.16300863]
[1727782944987,4.60343,2635.3,2635.2,0.0560295]
[1727782945281,4.60343,2635.3,2635.2,0.15941553]
[1727782948483,3.79463,2635.3,2635.2,0.15941553]
[1727782948788,5.77695489,2635.3,2635.2,0.15941553]
[1727782948949,3.79463,2635.3,2635.2,0.15941553]
[1727782949283,5.77699539,2635.3,2635.2,0.15941553]
[1727782949663,3.79463,2635.3,2635.2,0.15941553]
[1727782949871,5.7769646,2635.3,2635.2,0.15941553]
[1727782950393,5.77699915,2635.3,2635.2,0.15941553]
[1727782950987,3.79463,2635.3,2635.2,0.15941553]
[1727782954874,5.77720249,2635.3,2635.2,0.15941553]
[1727782955081,3.79463,2635.3,2635.2,0.15941553]
[1727782956164,5.77720318,2635.3,2635.2,0.15941553]
[1727782956590,3.79463,2635.3,2635.2,0.15941553]
[1727782956754,3.79463,2635.3,2635.2,0.0560295]
[1727782966689,3.79463,2635.3,2635.2,0.1594291]
[1727782966918,3.79463,2635.3,2635.2,0.0560295]
[1727782967823,3.79463,2635.3,2635.2,0.1594291]
[1727782970025,3.79463,2635.3,2635.2,0.0560295]
[1727782970702,3.79463,2635.3,2635.2,0.1594291]
[1727782970918,3.79463,2635.3,2635.2,0.0560295]
[1727782971088,3.79463,2635.3,2635.2,0.1594291]
[1727782971292,3.79463,2635.3,2635.2,0.0560295]
[1727782971812,3.79463,2635.3,2635.2,0.1594291]
[1727782972008,3.79463,2635.3,2635.2,0.0560295]
[1727782972214,3.79463,2635.3,2635.2,0.1594291]
[1727782972499,3.79463,2635.3,2635.2,0.0560295]
[1727782974240,3.79463,2635.3,2635.2,0.1594261]
[1727782974444,3.79463,2635.3,2635.2,0.0560295]
[1727782975039,3.79463,2635.3,2635.2,0.1594261]
[1727782975339,3.79463,2635.3,2635.2,0.0560295]
[1727782975632,3.79463,2635.3,2635.2,0.1594261]
[1727782980010,3.79463,2635.3,2635.2,0.9842261]
[1727782981346,3.79463,2635.3,2635.2,0.8808295]
[1727782981347,1.58640334,2635.3,2635.2,0.8808295]
[1727782981641,1.98296107,2635.3,2635.2,0.8808295]
[1727782981853,1.98296107,2635.3,2635.2,0.9842261]
[1727782982063,5.77759107,2635.3,2635.2,0.9842261]
[1727782982206,3.79463,2635.3,2635.2,0.9842261]
[1727782982613,1.586266,2635.3,2635.2,0.9842261]
[1727782984421,3.79421,2635.6,2635.2,0.9842261]
[1727782984422,1.586266,2635.5,2635.2,0.63735471]
[1727782984766,2.37882607,2635.9,2635.5,3.79424]
[1727782984767,1.586266,2635.8,2635.5,3.79424]
[1727782984909,1.586266,2635.9,2635.6,0.7695]
[1727782985106,1.586266,2636.0,2635.8,0.7695]
[1727782985416,1.586266,2636.1,2635.9,0.8720246]
[1727782985637,5.379546,2636.3,2635.9,1.94242686]
[1727782985853,5.379546,2636.3,2635.9,1.17292686]
[1727782986022,5.379546,2636.3,2636.0,0.8301]
[1727782986343,3.79328,2636.3,2636.0,0.93250652]
[1727782986647,3.79328,2636.3,2636.0,1.5121804]